[Event "*** SCC Grand Prix: Titled Tuesday Blitz"]
[Site "Chess.com"]
[Date "2020.09.08"]
[Round "6"]
[White "daro94"]
[Black "fighter2jz"]
[Result "1-0"]
[WhiteElo "2964"]
[BlackElo "2717"]
[TimeControl "180+1"]
[EndTime "11:07:11 PDT"]
[Termination "daro94 won by resignation"]

1. Nf3 {[%clk 0:03:00.9]} 1... Nf6 {[%clk 0:02:55.4]} 2. b3 {[%clk 0:03:01.2]}
2... g6 {[%clk 0:02:54.5]} 3. Bb2 {[%clk 0:03:01.4]} 3... Bg7 {[%clk 0:02:55]}
4. g3 {[%clk 0:03:02.2]} 4... b6 {[%clk 0:02:55.3]} 5. Bg2 {[%clk 0:03:02.6]}
5... Bb7 {[%clk 0:02:55.8]} 6. O-O {[%clk 0:03:03.3]} 6... O-O {[%clk
0:02:56.1]} 7. c4 {[%clk 0:03:04]} 7... e6 {[%clk 0:02:48.1]} 8. Nc3 {[%clk
0:02:58.2]} 8... d5 {[%clk 0:02:46.1]} 9. cxd5 {[%clk 0:02:58.6]} 9... exd5
{[%clk 0:02:46.1]} 10. d4 {[%clk 0:02:58.7]} 10... Nbd7 {[%clk 0:02:43.8]} 11.
Rc1 {[%clk 0:02:56.7]} 11... a6 {[%clk 0:02:42.3]} 12. Ne5 {[%clk 0:02:49.5]}
12... Rc8 {[%clk 0:02:38.8]} 13. e3 {[%clk 0:02:42.7]} 13... Nxe5 {[%clk
0:02:33.6]} 14. dxe5 {[%clk 0:02:42.6]} 14... Ne4 {[%clk 0:02:34.3]} 15. Nxe4
{[%clk 0:02:20.8]} 15... dxe4 {[%clk 0:02:34.1]} 16. Qc2 {[%clk 0:02:21.5]}
16... Qd5 {[%clk 0:02:17]} 17. Rfd1 {[%clk 0:02:21]} 17... Qa5 {[%clk
0:02:16.4]} 18. a4 {[%clk 0:02:07]} 18... b5 {[%clk 0:01:27.6]} 19. Bxe4 {[%clk
0:01:59.6]} 19... Bxe4 {[%clk 0:01:26.8]} 20. Qxe4 {[%clk 0:02:00.5]} 20... bxa4
{[%clk 0:01:27]} 21. bxa4 {[%clk 0:02:00.2]} 21... c5 {[%clk 0:01:24.8]} 22. Rc4
{[%clk 0:01:55.7]} 22... Rfe8 {[%clk 0:01:21.8]} 23. Kg2 {[%clk 0:01:51.1]}
23... Qb6 {[%clk 0:01:19]} 24. Bc3 {[%clk 0:01:48.7]} 24... Qb3 {[%clk
0:01:19.2]} 25. Rd5 {[%clk 0:01:40.7]} 25... Qb7 {[%clk 0:00:48.3]} 26. Rd6
{[%clk 0:01:31.4]} 26... Qb3 {[%clk 0:00:40.6]} 27. f4 {[%clk 0:00:54.9]} 27...
Rcd8 {[%clk 0:00:34.4]} 28. Rxd8 {[%clk 0:00:39.9]} 28... Rxd8 {[%clk
0:00:33.2]} 29. Rxc5 {[%clk 0:00:40.5]} 29... Bf8 {[%clk 0:00:21.4]} 30. Rc7
{[%clk 0:00:35.9]} 30... Qd1 {[%clk 0:00:19.2]} 31. Qc4 {[%clk 0:00:25.3]} 31...
Qc2+ {[%clk 0:00:14.1]} 32. Kh3 {[%clk 0:00:25.7]} 32... Qf5+ {[%clk 0:00:11.7]}
33. g4 {[%clk 0:00:26.2]} 33... Qd7 {[%clk 0:00:11.2]} 34. Rxd7 {[%clk 0:00:26]}
1-0

[Event "*** SCC Grand Prix: Titled Tuesday Blitz"]
[Site "Chess.com"]
[Date "2020.09.08"]
[Round "6"]
[White "narutosmith"]
[Black "HouseOfDurin"]
[Result "0-1"]
[WhiteElo "2240"]
[BlackElo "2127"]
[TimeControl "180+1"]
[EndTime "11:07:13 PDT"]
[Termination "HouseOfDurin won on time"]

1. c4 {[%clk 0:03:00.9]} 1... c5 {[%clk 0:03:00]} 2. Nc3 {[%clk 0:03:00.4]} 2...
Nc6 {[%clk 0:03:00.3]} 3. g3 {[%clk 0:03:00.1]} 3... g6 {[%clk 0:03:00.8]} 4.
Bg2 {[%clk 0:03:00.5]} 4... Bg7 {[%clk 0:03:01.5]} 5. a3 {[%clk 0:03:00.6]} 5...
e5 {[%clk 0:03:02]} 6. b4 {[%clk 0:03:00.3]} 6... d6 {[%clk 0:02:57.1]} 7. Qa4
{[%clk 0:02:40.7]} 7... Ne7 {[%clk 0:02:54.6]} 8. b5 {[%clk 0:02:36.9]} 8... Nd4
{[%clk 0:02:54]} 9. e3 {[%clk 0:02:29]} 9... Ne6 {[%clk 0:02:53.4]} 10. b6+
{[%clk 0:01:02.3]} 10... Bd7 {[%clk 0:02:51.3]} 11. Nb5 {[%clk 0:01:01.4]} 11...
axb6 {[%clk 0:01:33.6]} 12. Nxd6+ {[%clk 0:00:55.2]} 12... Kf8 {[%clk
0:01:34.1]} 13. Qb3 {[%clk 0:00:35.9]} 13... Bc6 {[%clk 0:01:33.2]} 14. Ne4
{[%clk 0:00:06.7]} 14... f5 {[%clk 0:01:30]} 15. f3 {[%clk 0:00:03.8]} 15...
fxe4 {[%clk 0:01:27.5]} 16. fxe4 {[%clk 0:00:04.7]} 16... Bf6 {[%clk 0:00:51.9]}
17. Nh3 {[%clk 0:00:03.6]} 17... Kg7 {[%clk 0:00:51.9]} 18. O-O {[%clk
0:00:03.7]} 18... Rf8 {[%clk 0:00:52.4]} 19. Nf2 {[%clk 0:00:02.6]} 19... h5
{[%clk 0:00:51.7]} 20. h4 {[%clk 0:00:02.8]} 20... g5 {[%clk 0:00:50.5]} 21. Bh3
{[%clk 0:00:01.2]} 21... Qd6 {[%clk 0:00:49]} 22. Bg2 {[%clk 0:00:02.1]} 22...
gxh4 {[%clk 0:00:47.7]} 23. gxh4 {[%clk 0:00:03]} 23... Bxh4 {[%clk 0:00:47.8]}
24. Nh3 {[%clk 0:00:03.4]} 24... Rxf1+ {[%clk 0:00:45.5]} 25. Bxf1 {[%clk
0:00:04.3]} 25... Rf8 {[%clk 0:00:45.3]} 26. Bg2 {[%clk 0:00:04.5]} 26... Ng6
{[%clk 0:00:38.3]} 27. d3 {[%clk 0:00:04.8]} 27... Ng5 {[%clk 0:00:33.9]} 28.
Bd2 {[%clk 0:00:05]} 28... Nxh3+ {[%clk 0:00:33.3]} 29. Bxh3 {[%clk 0:00:05.9]}
29... Bf2+ {[%clk 0:00:32]} 30. Kh1 {[%clk 0:00:05.5]} 30... Bd7 {[%clk
0:00:30.4]} 31. Bg2 {[%clk 0:00:05.3]} 31... Qf6 {[%clk 0:00:28.6]} 32. Rf1
{[%clk 0:00:05.3]} 32... Qh4+ {[%clk 0:00:28.2]} 0-1

[Event "*** SCC Grand Prix: Titled Tuesday Blitz"]
[Site "Chess.com"]
[Date "2020.09.08"]
[Round "6"]
[White "Chessmatus"]
[Black "Bhagya_2312"]
[Result "0-1"]
[WhiteElo "2377"]
[BlackElo "2108"]
[TimeControl "180+1"]
[EndTime "11:07:18 PDT"]
[Termination "Bhagya_2312 won by resignation"]

1. e4 {[%clk 0:03:00.9]} 1... c6 {[%clk 0:01:35]} 2. d4 {[%clk 0:02:40.8]} 2...
d5 {[%clk 0:01:34.6]} 3. e5 {[%clk 0:02:41.4]} 3... Bf5 {[%clk 0:01:34]} 4. Nf3
{[%clk 0:02:40.7]} 4... e6 {[%clk 0:01:33.1]} 5. Be2 {[%clk 0:02:38.9]} 5... Nd7
{[%clk 0:01:32]} 6. O-O {[%clk 0:02:37.8]} 6... Bg6 {[%clk 0:01:28.5]} 7. Nbd2
{[%clk 0:02:36.7]} 7... Nh6 {[%clk 0:01:24.7]} 8. Nb3 {[%clk 0:02:36.2]} 8...
Nf5 {[%clk 0:01:24.6]} 9. a4 {[%clk 0:02:33.2]} 9... Rc8 {[%clk 0:01:22.7]} 10.
a5 {[%clk 0:02:31.6]} 10... a6 {[%clk 0:01:22.6]} 11. c4 {[%clk 0:02:20.3]}
11... dxc4 {[%clk 0:01:16.7]} 12. Bxc4 {[%clk 0:02:18.8]} 12... Be7 {[%clk
0:01:16.6]} 13. g4 {[%clk 0:02:14.8]} 13... Nh6 {[%clk 0:01:11.6]} 14. h3 {[%clk
0:02:14.2]} 14... Ng8 {[%clk 0:01:01.6]} 15. Be3 {[%clk 0:01:48.1]} 15... Be4
{[%clk 0:00:57.8]} 16. Nfd2 {[%clk 0:01:21]} 16... Bd5 {[%clk 0:00:55.4]} 17.
Rc1 {[%clk 0:01:13.2]} 17... h5 {[%clk 0:00:53.8]} 18. Bxd5 {[%clk 0:01:06.7]}
18... exd5 {[%clk 0:00:36.9]} 19. gxh5 {[%clk 0:01:04.3]} 19... Nh6 {[%clk
0:00:36.2]} 20. Qc2 {[%clk 0:00:53.7]} 20... Nf8 {[%clk 0:00:31.3]} 21. f4
{[%clk 0:00:44]} 21... g6 {[%clk 0:00:12.2]} 22. hxg6 {[%clk 0:00:15.5]} 22...
fxg6 {[%clk 0:00:12.3]} 23. Nf3 {[%clk 0:00:11]} 23... Qd7 {[%clk 0:00:11.3]}
24. Kg2 {[%clk 0:00:10]} 24... Nf5 {[%clk 0:00:10.7]} 25. Bf2 {[%clk 0:00:09.1]}
25... Ne6 {[%clk 0:00:10.2]} 26. Qd3 {[%clk 0:00:08]} 26... Nxf4+ {[%clk
0:00:09.3]} 0-1

[Event "*** SCC Grand Prix: Titled Tuesday Blitz"]
[Site "Chess.com"]
[Date "2020.09.08"]
[Round "6"]
[White "Yashasd1995"]
[Black "M1711"]
[Result "0-1"]
[WhiteElo "2662"]
[BlackElo "2510"]
[TimeControl "180+1"]
[EndTime "11:07:23 PDT"]
[Termination "M1711 won on time"]

1. b3 {[%clk 0:03:00.9]} 1... b6 {[%clk 0:02:56.1]} 2. Bb2 {[%clk 0:02:59.7]}
2... Bb7 {[%clk 0:02:56.5]} 3. e3 {[%clk 0:03:00.6]} 3... Nf6 {[%clk 0:02:56.8]}
4. f4 {[%clk 0:02:55.1]} 4... e6 {[%clk 0:02:55.6]} 5. Nf3 {[%clk 0:02:53.4]}
5... Be7 {[%clk 0:02:55]} 6. Be2 {[%clk 0:02:50]} 6... c5 {[%clk 0:02:54.1]} 7.
O-O {[%clk 0:02:45.4]} 7... d6 {[%clk 0:02:49]} 8. c4 {[%clk 0:02:38.8]} 8...
Nbd7 {[%clk 0:02:41.6]} 9. Nc3 {[%clk 0:02:31.4]} 9... O-O {[%clk 0:02:40.9]}
10. d4 {[%clk 0:02:16.3]} 10... cxd4 {[%clk 0:02:38.8]} 11. exd4 {[%clk
0:02:14.3]} 11... d5 {[%clk 0:02:23.1]} 12. Ne5 {[%clk 0:02:07.9]} 12... Rc8
{[%clk 0:02:20.5]} 13. Bf3 {[%clk 0:02:06.6]} 13... Ba8 {[%clk 0:02:13.4]} 14.
Rc1 {[%clk 0:02:04.6]} 14... Ne4 {[%clk 0:01:36.8]} 15. cxd5 {[%clk 0:01:09.8]}
15... Nxc3 {[%clk 0:01:30.3]} 16. Rxc3 {[%clk 0:01:05.5]} 16... Bxd5 {[%clk
0:01:15.2]} 17. Bxd5 {[%clk 0:01:03.9]} 17... exd5 {[%clk 0:01:15.3]} 18. Qg4
{[%clk 0:01:00.2]} 18... Rxc3 {[%clk 0:01:12.9]} 19. Bxc3 {[%clk 0:00:59.6]}
19... Nf6 {[%clk 0:01:10.5]} 20. Qe2 {[%clk 0:00:40.1]} 20... Ne4 {[%clk
0:01:07.5]} 21. Bb2 {[%clk 0:00:39.9]} 21... Qc8 {[%clk 0:00:55.5]} 22. f5
{[%clk 0:00:37.8]} 22... Bg5 {[%clk 0:00:48.5]} 23. g3 {[%clk 0:00:18.2]} 23...
Re8 {[%clk 0:00:24.1]} 24. Qb5 {[%clk 0:00:10]} 24... Nf6 {[%clk 0:00:14.4]} 25.
Kg2 {[%clk 0:00:02.8]} 25... Qc2+ {[%clk 0:00:09.8]} 26. Rf2 {[%clk 0:00:03.2]}
26... Qe4+ {[%clk 0:00:10.4]} 27. Kh3 {[%clk 0:00:02.4]} 27... h5 {[%clk
0:00:07.8]} 0-1

[Event "*** SCC Grand Prix: Titled Tuesday Blitz"]
[Site "Chess.com"]
[Date "2020.09.08"]
[Round "6"]
[White "IroniaSudby"]
[Black "francyIM"]
[Result "0-1"]
[WhiteElo "2502"]
[BlackElo "2708"]
[TimeControl "180+1"]
[EndTime "11:07:31 PDT"]
[Termination "francyIM won by resignation"]

1. d4 {[%clk 0:03:00.9]} 1... Nf6 {[%clk 0:02:56.4]} 2. c4 {[%clk 0:03:01.3]}
2... e6 {[%clk 0:02:56]} 3. Nc3 {[%clk 0:03:01.8]} 3... Bb4 {[%clk 0:02:55.6]}
4. Nf3 {[%clk 0:03:02.4]} 4... O-O {[%clk 0:02:55.3]} 5. Bg5 {[%clk 0:03:02.6]}
5... h6 {[%clk 0:02:52.8]} 6. Bh4 {[%clk 0:03:03.2]} 6... c5 {[%clk 0:02:52.3]}
7. dxc5 {[%clk 0:03:02.9]} 7... Na6 {[%clk 0:02:52.2]} 8. Qc2 {[%clk 0:03:02.6]}
8... Nxc5 {[%clk 0:02:51.8]} 9. e3 {[%clk 0:03:01.3]} 9... Nce4 {[%clk
0:02:45.2]} 10. Bd3 {[%clk 0:03:00.4]} 10... Bxc3+ {[%clk 0:02:44.8]} 11. bxc3
{[%clk 0:03:01.3]} 11... Nc5 {[%clk 0:02:45.1]} 12. O-O {[%clk 0:02:58.6]} 12...
d6 {[%clk 0:02:45.1]} 13. Rfd1 {[%clk 0:02:58.3]} 13... Qe7 {[%clk 0:02:41.3]}
14. Nd4 {[%clk 0:02:51.5]} 14... b6 {[%clk 0:02:39.3]} 15. f3 {[%clk 0:02:50.9]}
15... Bb7 {[%clk 0:02:39.1]} 16. a4 {[%clk 0:02:36.8]} 16... Rfc8 {[%clk
0:02:13.5]} 17. Bf1 {[%clk 0:02:31.1]} 17... Rd8 {[%clk 0:02:05.7]} 18. a5
{[%clk 0:02:29.2]} 18... bxa5 {[%clk 0:02:05.7]} 19. Rxa5 {[%clk 0:02:23.5]}
19... a6 {[%clk 0:02:03.4]} 20. e4 {[%clk 0:01:59.1]} 20... Ncd7 {[%clk
0:01:58.7]} 21. Rb1 {[%clk 0:01:55.8]} 21... Rdb8 {[%clk 0:01:56.3]} 22. Bf2
{[%clk 0:01:46.1]} 22... Nc5 {[%clk 0:01:51.1]} 23. h3 {[%clk 0:01:33.9]} 23...
Qc7 {[%clk 0:01:49]} 24. Ra2 {[%clk 0:01:30.4]} 24... Bc8 {[%clk 0:01:42.7]} 25.
Rab2 {[%clk 0:01:26.6]} 25... Rxb2 {[%clk 0:01:42]} 26. Qxb2 {[%clk 0:01:27.5]}
26... Nfd7 {[%clk 0:01:41.4]} 27. Qa3 {[%clk 0:01:14.9]} 27... Rb8 {[%clk
0:01:27.1]} 28. Rd1 {[%clk 0:01:15]} 28... Nb6 {[%clk 0:01:18.2]} 29. Qa5 {[%clk
0:01:10.7]} 29... Rb7 {[%clk 0:01:04.1]} 30. Bg3 {[%clk 0:01:06.2]} 30... e5
{[%clk 0:01:02.8]} 31. Nc2 {[%clk 0:00:55.8]} 31... Be6 {[%clk 0:01:00.7]} 32.
Ne3 {[%clk 0:00:52.1]} 32... Ncd7 {[%clk 0:00:55.1]} 33. Qa3 {[%clk 0:00:46.9]}
33... Nc8 {[%clk 0:00:52]} 34. Kh2 {[%clk 0:00:41.3]} 34... Nc5 {[%clk
0:00:49.5]} 35. Be2 {[%clk 0:00:35.2]} 35... Rb3 {[%clk 0:00:47.5]} 36. Qc1
{[%clk 0:00:35.8]} 36... a5 {[%clk 0:00:44.4]} 37. Nd5 {[%clk 0:00:21.9]} 37...
Bxd5 {[%clk 0:00:41.6]} 38. Rxd5 {[%clk 0:00:18.7]} 38... a4 {[%clk 0:00:41.8]}
39. f4 {[%clk 0:00:19.1]} 39... Nxe4 {[%clk 0:00:38.2]} 40. fxe5 {[%clk
0:00:15.9]} 40... Nxg3 {[%clk 0:00:37.9]} 41. exd6 {[%clk 0:00:16.5]} 41... Nxd6
{[%clk 0:00:36.8]} 42. Bf3 {[%clk 0:00:13.1]} 42... Ndf5 {[%clk 0:00:33.4]} 43.
Qd2 {[%clk 0:00:11]} 43... Nf1+ {[%clk 0:00:32.5]} 0-1

[Event "*** SCC Grand Prix: Titled Tuesday Blitz"]
[Site "Chess.com"]
[Date "2020.09.08"]
[Round "6"]
[White "Elegance_Riks"]
[Black "r31415"]
[Result "0-1"]
[WhiteElo "2598"]
[BlackElo "2474"]
[TimeControl "180+1"]
[EndTime "11:07:31 PDT"]
[Termination "r31415 won by checkmate"]

1. e4 {[%clk 0:03:00.9]} 1... e5 {[%clk 0:03:00]} 2. Nf3 {[%clk 0:03:00.6]} 2...
Nc6 {[%clk 0:03:00.6]} 3. Nc3 {[%clk 0:03:01.1]} 3... Nf6 {[%clk 0:03:00.8]} 4.
Bb5 {[%clk 0:03:01.3]} 4... Nd4 {[%clk 0:03:00.7]} 5. O-O {[%clk 0:03:01.3]}
5... Nxb5 {[%clk 0:02:39.7]} 6. Nxb5 {[%clk 0:03:02.2]} 6... c6 {[%clk
0:02:02.7]} 7. Nc3 {[%clk 0:03:01.2]} 7... d6 {[%clk 0:02:02.1]} 8. d4 {[%clk
0:03:01]} 8... Qc7 {[%clk 0:01:59.3]} 9. Bg5 {[%clk 0:02:56.8]} 9... Be7 {[%clk
0:01:58.9]} 10. a4 {[%clk 0:02:56.8]} 10... O-O {[%clk 0:01:57.2]} 11. Qd3
{[%clk 0:02:54.1]} 11... h6 {[%clk 0:01:56.5]} 12. Bh4 {[%clk 0:02:53.7]} 12...
Re8 {[%clk 0:01:54.7]} 13. Bxf6 {[%clk 0:02:53.5]} 13... Bxf6 {[%clk 0:01:54.3]}
14. d5 {[%clk 0:02:54.1]} 14... a5 {[%clk 0:01:41.2]} 15. Nd2 {[%clk 0:02:53.1]}
15... Be7 {[%clk 0:01:34.1]} 16. Nc4 {[%clk 0:02:51]} 16... Bg4 {[%clk
0:01:18.1]} 17. Ne3 {[%clk 0:02:33.5]} 17... Bd7 {[%clk 0:01:12.2]} 18. Rad1
{[%clk 0:02:31.3]} 18... Rad8 {[%clk 0:01:11.2]} 19. Nf5 {[%clk 0:02:28.4]}
19... Bc8 {[%clk 0:01:00.6]} 20. Qg3 {[%clk 0:02:24.4]} 20... Bxf5 {[%clk
0:00:57.2]} 21. exf5 {[%clk 0:02:24.8]} 21... Qb6 {[%clk 0:00:50.9]} 22. b3
{[%clk 0:02:14.5]} 22... Qb4 {[%clk 0:00:50.7]} 23. Rfe1 {[%clk 0:02:12.5]}
23... Bg5 {[%clk 0:00:49.1]} 24. Ne4 {[%clk 0:02:05.1]} 24... cxd5 {[%clk
0:00:48.9]} 25. Nxg5 {[%clk 0:02:01.8]} 25... hxg5 {[%clk 0:00:49.3]} 26. Qxg5
{[%clk 0:02:02.1]} 26... f6 {[%clk 0:00:50]} 27. Qh5 {[%clk 0:01:56]} 27... d4
{[%clk 0:00:49.6]} 28. Re4 {[%clk 0:01:53.2]} 28... d5 {[%clk 0:00:30.2]} 29.
Rg4 {[%clk 0:01:49.4]} 29... Qf8 {[%clk 0:00:21.9]} 30. Rd3 {[%clk 0:01:44.5]}
30... Qf7 {[%clk 0:00:21]} 31. Qh4 {[%clk 0:01:43.2]} 31... Rc8 {[%clk
0:00:15.3]} 32. Rh3 {[%clk 0:01:20.5]} 32... Kf8 {[%clk 0:00:14.8]} 33. Qh8+
{[%clk 0:01:18.9]} 33... Ke7 {[%clk 0:00:15]} 34. Qh7 {[%clk 0:01:19.1]} 34...
Rxc2 {[%clk 0:00:13.9]} 35. g3 {[%clk 0:01:18.8]} 35... Rg8 {[%clk 0:00:13.2]}
36. Rh6 {[%clk 0:01:18.3]} 36... d3 {[%clk 0:00:10.3]} 37. Rhg6 {[%clk
0:01:15.1]} 37... Kf8 {[%clk 0:00:10.1]} 38. Rxf6 {[%clk 0:00:55.9]} 38... Qxf6
{[%clk 0:00:07.4]} 39. Qh5 {[%clk 0:00:54]} 39... d2 {[%clk 0:00:05.9]} 40. Rg6
{[%clk 0:00:54.4]} 40... Rc1+ {[%clk 0:00:05.9]} 41. Kg2 {[%clk 0:00:54.7]}
41... d1=Q {[%clk 0:00:06.1]} 42. Rxf6+ {[%clk 0:00:55.1]} 42... gxf6 {[%clk
0:00:05.7]} 43. Qh6+ {[%clk 0:00:55.6]} 43... Kf7 {[%clk 0:00:06]} 44. Qh7+
{[%clk 0:00:53.4]} 44... Rg7 {[%clk 0:00:06.3]} 45. Qh8 {[%clk 0:00:53.7]} 45...
Qf1+ {[%clk 0:00:03.9]} 46. Kf3 {[%clk 0:00:53.3]} 46... Rc3# {[%clk 0:00:03.9]}
0-1

[Event "*** SCC Grand Prix: Titled Tuesday Blitz"]
[Site "Chess.com"]
[Date "2020.09.08"]
[Round "6"]
[White "abykhovsky"]
[Black "Funo09"]
[Result "0-1"]
[WhiteElo "2653"]
[BlackElo "2849"]
[TimeControl "180+1"]
[EndTime "11:07:34 PDT"]
[Termination "Funo09 won by checkmate"]

1. Nf3 {[%clk 0:03:00.9]} 1... Nf6 {[%clk 0:03:00]} 2. g3 {[%clk 0:02:52.1]}
2... g6 {[%clk 0:03:00.2]} 3. Bg2 {[%clk 0:02:52.4]} 3... Bg7 {[%clk 0:03:01.1]}
4. O-O {[%clk 0:02:53]} 4... O-O {[%clk 0:03:02]} 5. c4 {[%clk 0:02:53.2]} 5...
d6 {[%clk 0:03:01]} 6. Nc3 {[%clk 0:02:53]} 6... e5 {[%clk 0:03:00.8]} 7. d3
{[%clk 0:02:52.5]} 7... Nc6 {[%clk 0:03:00.6]} 8. Bg5 {[%clk 0:02:52.4]} 8... h6
{[%clk 0:02:59.9]} 9. Bxf6 {[%clk 0:02:52.8]} 9... Bxf6 {[%clk 0:03:00.8]} 10.
Rb1 {[%clk 0:02:52.9]} 10... a5 {[%clk 0:03:01.3]} 11. a3 {[%clk 0:02:52.8]}
11... Bg7 {[%clk 0:03:00.4]} 12. b4 {[%clk 0:02:52.2]} 12... axb4 {[%clk
0:03:00.1]} 13. axb4 {[%clk 0:02:52.4]} 13... Ne7 {[%clk 0:02:53.8]} 14. b5
{[%clk 0:02:50.1]} 14... Be6 {[%clk 0:02:47.3]} 15. Nd2 {[%clk 0:02:47.3]} 15...
e4 {[%clk 0:02:42.1]} 16. Qb3 {[%clk 0:02:31.4]} 16... exd3 {[%clk 0:02:38.3]}
17. exd3 {[%clk 0:02:32.3]} 17... c6 {[%clk 0:02:30.8]} 18. Rfe1 {[%clk
0:02:32.2]} 18... Qd7 {[%clk 0:02:27.6]} 19. Ne2 {[%clk 0:02:13.7]} 19... Nf5
{[%clk 0:02:13.9]} 20. Nf3 {[%clk 0:01:51.8]} 20... g5 {[%clk 0:02:08.6]} 21.
Nd2 {[%clk 0:01:45]} 21... Ra7 {[%clk 0:02:02.6]} 22. bxc6 {[%clk 0:01:36.9]}
22... bxc6 {[%clk 0:02:03.5]} 23. Qb6 {[%clk 0:01:36.9]} 23... Rc8 {[%clk
0:02:03.6]} 24. Ne4 {[%clk 0:01:33.7]} 24... Ra2 {[%clk 0:02:02.2]} 25. N4c3
{[%clk 0:01:19.9]} 25... Rc2 {[%clk 0:01:53]} 26. Ne4 {[%clk 0:01:04.3]} 26...
Ra8 {[%clk 0:01:45.7]} 27. Rbc1 {[%clk 0:00:55.4]} 27... Rb2 {[%clk 0:01:42.9]}
28. Qxb2 {[%clk 0:00:27.7]} 28... Bxb2 {[%clk 0:01:43.8]} 29. d4 {[%clk
0:00:28]} 29... Kg7 {[%clk 0:01:30.6]} 30. Rc2 {[%clk 0:00:27.5]} 30... Bxd4
{[%clk 0:01:29.6]} 31. g4 {[%clk 0:00:27.4]} 31... d5 {[%clk 0:01:23.8]} 32.
cxd5 {[%clk 0:00:23.5]} 32... cxd5 {[%clk 0:01:24.7]} 33. gxf5 {[%clk 0:00:24]}
33... Bxf5 {[%clk 0:01:24.6]} 34. Nxd4 {[%clk 0:00:19.4]} 34... Bxe4 {[%clk
0:01:24.8]} 35. Bxe4 {[%clk 0:00:19.5]} 35... dxe4 {[%clk 0:01:25.7]} 36. Rxe4
{[%clk 0:00:19.7]} 36... Qd5 {[%clk 0:01:23]} 37. Rce2 {[%clk 0:00:19.6]} 37...
Ra1+ {[%clk 0:01:20.9]} 38. Kg2 {[%clk 0:00:17.8]} 38... f5 {[%clk 0:01:20]} 39.
Nxf5+ {[%clk 0:00:15]} 39... Qxf5 {[%clk 0:01:18.5]} 40. h3 {[%clk 0:00:15.5]}
40... Ra3 {[%clk 0:01:15.2]} 41. R4e3 {[%clk 0:00:15.5]} 41... Ra6 {[%clk
0:01:10.7]} 42. Re5 {[%clk 0:00:15]} 42... Qc8 {[%clk 0:01:09.6]} 43. Re7+
{[%clk 0:00:14.7]} 43... Kg6 {[%clk 0:01:10.1]} 44. R7e5 {[%clk 0:00:14.9]}
44... Qc6+ {[%clk 0:01:09.2]} 45. Kh2 {[%clk 0:00:14.6]} 45... Qf3 {[%clk
0:01:09.3]} 46. R5e3 {[%clk 0:00:14.8]} 46... Qf4+ {[%clk 0:01:09.6]} 47. Kg2
{[%clk 0:00:15.4]} 47... Kh5 {[%clk 0:01:10]} 48. Rf3 {[%clk 0:00:13.3]} 48...
Qd6 {[%clk 0:01:08.6]} 49. h4 {[%clk 0:00:09]} 49... Qd5 {[%clk 0:01:02.1]} 50.
hxg5 {[%clk 0:00:08.4]} 50... hxg5 {[%clk 0:01:01.5]} 51. Kg3 {[%clk 0:00:08.9]}
51... Ra1 {[%clk 0:00:59.4]} 52. Ree3 {[%clk 0:00:09.1]} 52... Qd1 {[%clk
0:00:53.8]} 53. Rf5 {[%clk 0:00:05.8]} 53... Qg1+ {[%clk 0:00:53.2]} 54. Kh3
{[%clk 0:00:03.4]} 54... Qh1+ {[%clk 0:00:53.8]} 55. Kg3 {[%clk 0:00:03.8]}
55... Rg1# {[%clk 0:00:54.3]} 0-1

[Event "*** SCC Grand Prix: Titled Tuesday Blitz"]
[Site "Chess.com"]
[Date "2020.09.08"]
[Round "6"]
[White "Thjop"]
[Black "barriochess"]
[Result "0-1"]
[WhiteElo "2605"]
[BlackElo "2373"]
[TimeControl "180+1"]
[EndTime "11:07:38 PDT"]
[Termination "barriochess won by resignation"]

1. d4 {[%clk 0:03:00.9]} 1... Nf6 {[%clk 0:02:59]} 2. g3 {[%clk 0:03:01]} 2...
g6 {[%clk 0:02:54.6]} 3. Bg2 {[%clk 0:03:00.9]} 3... Bg7 {[%clk 0:02:55]} 4. e4
{[%clk 0:03:01.1]} 4... d6 {[%clk 0:02:54.7]} 5. Nc3 {[%clk 0:03:01.7]} 5... O-O
{[%clk 0:02:54.5]} 6. Nge2 {[%clk 0:03:02]} 6... e5 {[%clk 0:02:51.4]} 7. h3
{[%clk 0:03:02.1]} 7... Nc6 {[%clk 0:02:50.9]} 8. Be3 {[%clk 0:03:01.7]} 8...
exd4 {[%clk 0:02:47.8]} 9. Nxd4 {[%clk 0:03:02.6]} 9... Bd7 {[%clk 0:02:48.1]}
10. O-O {[%clk 0:03:01.3]} 10... Re8 {[%clk 0:02:48]} 11. f4 {[%clk 0:02:55.5]}
11... Nxe4 {[%clk 0:02:44.1]} 12. Nxe4 {[%clk 0:02:54]} 12... d5 {[%clk
0:02:42.3]} 13. Nxc6 {[%clk 0:01:50.2]} 13... Bxc6 {[%clk 0:02:28.1]} 14. Bxa7
{[%clk 0:01:11.3]} 14... dxe4 {[%clk 0:02:09.3]} 15. Be3 {[%clk 0:01:09.3]}
15... Bxb2 {[%clk 0:02:04.5]} 16. Rb1 {[%clk 0:01:07.7]} 16... Bg7 {[%clk
0:02:02.4]} 17. f5 {[%clk 0:00:58.3]} 17... Qxd1 {[%clk 0:01:56.2]} 18. Rbxd1
{[%clk 0:00:56.6]} 18... Rxa2 {[%clk 0:01:52.2]} 19. f6 {[%clk 0:00:55.1]} 19...
Bf8 {[%clk 0:01:49]} 20. Rf2 {[%clk 0:00:52.4]} 20... Bd6 {[%clk 0:01:40.6]} 21.
g4 {[%clk 0:00:46.9]} 21... Rea8 {[%clk 0:01:37.1]} 22. Rfd2 {[%clk 0:00:40.7]}
22... Ra1 {[%clk 0:01:32.3]} 23. c4 {[%clk 0:00:40.6]} 23... Rxd1+ {[%clk
0:01:31.8]} 24. Rxd1 {[%clk 0:00:41.5]} 24... Be5 {[%clk 0:01:25.4]} 25. g5
{[%clk 0:00:33.6]} 25... Ra1 {[%clk 0:01:23.5]} 26. Rxa1 {[%clk 0:00:32.1]}
26... Bxa1 {[%clk 0:01:22.6]} 27. Kf2 {[%clk 0:00:33]} 27... Be5 {[%clk
0:01:21]} 28. Ke2 {[%clk 0:00:31]} 28... h5 {[%clk 0:01:20]} 29. Kd2 {[%clk
0:00:26.7]} 29... Kf8 {[%clk 0:01:17.7]} 30. Kc2 {[%clk 0:00:27.1]} 30... Ke8
{[%clk 0:01:16.7]} 31. Kb3 {[%clk 0:00:27.4]} 31... Kd7 {[%clk 0:01:09.6]} 32.
Kb4 {[%clk 0:00:26.8]} 32... b6 {[%clk 0:01:08.5]} 33. Bf1 {[%clk 0:00:24.2]}
33... Ke6 {[%clk 0:01:06.9]} 34. Be2 {[%clk 0:00:22.5]} 34... Kf5 {[%clk
0:01:03.6]} 35. h4 {[%clk 0:00:21.9]} 35... Bg3 {[%clk 0:00:55.5]} 36. Bf1
{[%clk 0:00:21.9]} 36... Bxh4 {[%clk 0:00:44]} 37. Bh3+ {[%clk 0:00:20.3]} 37...
Ke5 {[%clk 0:00:43.9]} 38. Kc3 {[%clk 0:00:19.9]} 38... Be1+ {[%clk 0:00:42.9]}
39. Kb3 {[%clk 0:00:19.3]} 39... b5 {[%clk 0:00:38.1]} 40. c5 {[%clk 0:00:16.7]}
40... Bd5+ {[%clk 0:00:37.3]} 41. Kc2 {[%clk 0:00:16.2]} 41... c6 {[%clk
0:00:35.5]} 42. Bd7 {[%clk 0:00:15.5]} 42... h4 {[%clk 0:00:31]} 43. Bg1 {[%clk
0:00:15]} 43... Bg3 {[%clk 0:00:29.9]} 44. Kd2 {[%clk 0:00:14.7]} 44... Bf4+
{[%clk 0:00:27.6]} 45. Ke2 {[%clk 0:00:14.6]} 45... Bxg5 {[%clk 0:00:27.4]} 46.
Bh2+ {[%clk 0:00:14.4]} 46... Kxf6 {[%clk 0:00:26.9]} 0-1